bitfinex/quotes_ETHUSD_20241124
["timestamp","ask_amount","ask_price","bid_price","bid_amount"]
[1732462617618,3.03485,3295.1,3294.2,0.0303518]
[1732462617915,3.83272,3295.6,3294.9,1.21399]
[1732462618126,3.03445,3295.5,3294.9,1.21399]
[1732462618440,3.03408,3295.9,3295.1,0.7576]
[1732462618646,3.03459,3295.4,3294.8,1.21401]
[1732462618937,0.7983,3296.1,3294.9,1.21399]
[1732462618938,3.03444,3295.5,3294.9,1.21399]
[1732462619700,3.03426,3295.7,3294.9,1.21399]
[1732462619910,3.0345,3295.5,3294.7,1.97163]
[1732462620127,0.303426,3295.6,3294.7,0.7576]
[1732462620306,3.03411,3295.9,3295.2,1.21388]
[1732462620603,0.686633,3295.9,3294.8,0.03034295]
[1732462620808,3.03425,3295.7,3295.1,1.2139]
[1732462621019,0.03023726,3296.0,3294.9,0.7576]
[1732462621297,3.03414,3295.9,3295.1,1.51738]
[1732462621508,3.03377,3296.3,3295.5,1.51718]
[1732462621703,3.03382,3296.2,3295.6,0.78793998]
[1732462622124,3.83194,3296.4,3295.6,0.7576]
[1732462622378,0.383192,3296.3,3295.7,1.54742995]
[1732462622635,3.03311,3297.0,3296.3,1.51683]
[1732462622820,3.83128,3297.1,3296.3,1.51683]
[1732462623140,3.03334,3296.7,3296.3,0.7576]
[1732462623331,0.03023726,3296.6,3295.9,0.7576]
[1732462623642,4.19551544,3297.1,3295.5,0.7576]
[1732462623643,3.03386,3296.2,3295.5,0.7576]
[1732462623807,3.03386,3296.2,3294.3,0.3023]
[1732462623808,3.03442,3295.6,3294.8,0.7576]
[1732462624006,0.7983,3296.0,3294.9,0.03034554]
[1732462624253,0.7983,3296.6,3295.6,0.7576]
[1732462624421,0.7983,3297.1,3295.7,0.03033614]
[1732462624737,0.7983,3297.1,3296.7,1.51665]
[1732462624949,0.09185018,3297.0,3296.5,1.51676]
[1732462625115,0.09185018,3297.0,3296.3,2.27444]
[1732462625316,3.03332,3296.8,3296.3,0.7576]
[1732462625532,3.03353,3296.5,3295.8,1.51707]
[1732462625717,3.03391,3296.1,3295.5,0.7865]
[1732462626025,3.03415,3295.9,3295.1,0.7865]
[1732462626249,3.03432,3295.7,3294.8,2.30403]
[1732462626433,0.30645573,3295.6,3294.9,1.51749]
[1732462626640,3.03451,3295.5,3294.8,0.7865]
[1732462627028,0.09185018,3295.4,3294.8,0.7865]
[1732462627227,3.0346,3295.4,3294.8,0.7865]
[1732462627459,0.09261968,3295.3,3294.8,0.7865]
[1732462627964,0.09261968,3295.3,3294.9,0.0303454]
[1732462628136,0.09261968,3295.3,3294.8,0.7865]
[1732462628341,3.03453,3295.4,3294.8,0.7865]
[1732462628653,0.03023726,3295.9,3294.8,0.7865]
[1732462628654,3.03464,3295.3,3294.8,0.7865]
[1732462628868,3.0348,3295.2,3294.8,0.7865]
[1732462629028,1.41444323,3295.2,3294.0,0.7865]
[1732462629364,3.03491,3295.0,3294.1,1.51786]
[1732462629548,0.09261968,3295.1,3294.3,0.7865]
[1732462629876,0.768,3295.6,3294.5,1.51764]
[1732462629877,0.09261968,3295.0,3294.5,1.51764]
[1732462630071,3.03453,3295.4,3294.5,1.51764]
[1732462630359,0.09261968,3294.9,3294.6,1.51762]
[1732462630568,3.768,3295.6,3294.6,0.15479673]
[1732462630864,3.768,3295.6,3294.3,0.7865]
[1732462630865,3.03492,3295.0,3294.3,0.7865]
[1732462631172,3.03515,3294.8,3294.3,0.7865]
[1732462631330,3.03515,3294.8,3293.9,1.51794]
[1732462631531,0.09261968,3294.7,3293.8,3.81685169]
[1732462631837,3.03513,3294.8,3293.9,1.51793]
[1732462632053,0.09261968,3294.6,3293.9,1.51793]
[1732462632232,3.03501,3294.9,3294.0,1.5179]
[1732462632425,3.03501,3294.9,3293.8,2.33484169]
[1732462632426,0.09261968,3294.5,3294.1,0.15179]
[1732462632626,3.03493,3295.0,3294.0,0.55]
[1732462632627,3.03519,3294.7,3294.0,0.55]
[1732462632847,0.09261968,3294.4,3293.9,0.55]
[1732462633048,3.03493,3295.0,3294.0,1.5179]
[1732462633376,3.03482,3295.1,3294.4,1.51772]
[1732462633778,3.03482,3295.1,3294.2,3.03034816]
[1732462634012,3.03482,3295.1,3294.3,1.67257682]
[1732462634521,3.03482,3295.1,3294.4,1.51772]
[1732462634816,3.03473,3295.2,3294.5,0.7865]
[1732462635015,3.03503,3294.9,3294.1,0.7865]
[1732462635322,3.03538,3294.5,3294.1,0.7865]
[1732462635624,3.035,3294.9,3294.2,1.51781]
[1732462635929,3.035,3294.9,3294.3,0.03034963]
[1732462636220,3.035,3294.9,3294.2,1.51781]
[1732462636389,3.03493,3295.0,3294.1,0.81684963]
[1732462636582,3.03455,3295.4,3294.2,0.78347396]
[1732462636777,3.0,3295.7,3294.2,0.78347396]
[1732462636778,3.0,3295.7,3294.4,1.51769]
[1732462637007,3.03482,3295.1,3294.4,1.51769]
[1732462637320,3.0342,3295.8,3294.8,1.51754]
[1732462637321,3.03419,3295.8,3294.8,1.51754]
[1732462637542,0.7996,3296.3,3295.3,0.7781]
[1732462637696,3.03364,3296.4,3295.4,0.03033844]
[1732462637895,0.303364,3296.3,3295.4,0.03033844]
[1732462638195,3.0338,3296.2,3295.4,0.03033844]
[1732462638527,3.03389,3296.1,3295.4,1.51725]
[1732462639039,3.03416,3295.9,3295.3,0.7781]
[1732462639412,0.303389,3296.0,3295.3,0.7781]
[1732462639614,3.0344,3295.6,3295.0,0.55]
[1732462639815,0.03023726,3295.5,3294.5,0.80844353]
[1732462640011,3.03473,3295.2,3294.5,0.7781]
[1732462640211,3.03496,3295.0,3294.5,0.7781]
[1732462640414,0.08915803,3294.9,3294.5,0.7781]
[1732462640717,3.03473,3295.2,3294.5,0.7781]
[1732462640913,0.08915803,3294.8,3294.5,2.29573]
[1732462641096,3.7996,3296.3,3295.3,1.51727]
[1732462641303,3.03394,3296.1,3295.3,1.51728]
[1732462641517,0.303394,3296.0,3295.3,1.51728]
[1732462641752,0.303394,3296.0,3295.1,1.54772015]
[1732462641753,3.03407,3295.9,3295.1,1.51738]
[1732462642043,0.7996,3295.7,3294.4,1.51768]
[1732462642348,3.03481,3295.1,3294.4,1.51768]
[1732462642513,3.03463,3295.3,3294.3,1.54808857]
[1732462642514,3.03491,3295.0,3294.3,1.54808857]
[1732462642702,0.7996,3295.7,3294.2,0.7781]
[1732462642703,3.03515,3294.8,3294.2,0.7781]
[1732462643115,0.82983726,3294.9,3293.9,0.7781]
[1732462643345,0.08915803,3294.7,3293.9,0.7781]
[1732462643559,3.03509,3294.8,3293.9,2.29603]
[1732462643701,0.08915803,3294.6,3294.2,1.51779]
[1732462643900,3.03515,3294.8,3294.0,1.54823221]
[1732462644101,0.08915803,3294.5,3294.0,0.03035221]
[1732462644349,3.06507726,3295.1,3293.6,0.0303515]
[1732462644514,3.0356,3294.3,3293.6,0.0303515]
[1732462644720,3.0356,3294.3,3293.6,1.51808]
[1732462645066,3.03596,3293.9,3293.5,0.7781]
[1732462645347,0.33379726,3294.2,3293.1,0.913982]
[1732462645501,3.03638,3293.4,3293.1,0.913982]
[1732462645701,3.03614,3293.7,3293.1,0.913982]
[1732462645901,0.08915803,3293.3,3293.1,2.432302]
[1732462646102,3.03598,3293.9,3293.1,0.913982]
[1732462646312,0.08915803,3293.2,3293.1,0.913982]
[1732462646552,3.0363,3293.5,3293.1,0.913982]
[1732462646750,0.08915803,3293.2,3293.1,0.913982]
[1732462646898,3.03637,3293.4,3293.1,0.149082]
[1732462647102,0.08915803,3293.2,3293.1,0.149082]
[1732462647300,3.3491128,3293.2,3293.1,0.149082]
[1732462647843,3.43827083,3293.2,3293.1,0.149082]
[1732462648149,0.40171083,3293.2,3293.1,0.149082]
[1732462648318,3.12571803,3293.2,3293.1,0.149082]
[1732462650010,6.90341803,3293.2,3293.1,0.149082]
[1732462650228,3.03749,3292.2,3291.5,2.31430319]
[1732462650426,3.03689,3292.9,3291.5,2.31430319]
[1732462650427,0.08752308,3292.1,3291.5,0.7649]
[1732462650632,0.7777,3293.1,3292.0,2.28373]
[1732462650958,0.08752308,3293.0,3292.2,1.51869]
[1732462651119,0.08752308,3293.0,3292.4,1.51861]
[1732462651302,0.08752308,3293.0,3292.5,0.03036788]
[1732462651504,0.08752308,3293.0,3292.7,1.5185]
[1732462651854,3.81364,3293.9,3293.0,1.51833]
[1732462652147,3.12341573,3293.8,3293.1,0.03036343]
[1732462652346,0.39011157,3293.7,3293.1,0.03036343]
[1732462652588,0.08741573,3293.8,3293.2,1.51826]
[1732462652788,3.03582,3294.0,3293.3,1.51821]
[1732462652942,0.08758953,3293.7,3293.2,1.51826]
[1732462653142,3.339402,3294.0,3293.3,1.51819]
[1732462653383,0.08758953,3293.6,3293.5,1.51813]
[1732462653598,3.638464,3295.0,3293.9,1.51794]
[1732462653599,3.81294,3294.7,3293.9,1.51794]
[1732462653875,0.77259896,3294.6,3294.1,1.51786]
[1732462654084,0.08779396,3294.6,3294.2,1.5178]
[1732462654241,0.7777,3295.1,3294.3,0.7649]
[1732462654442,0.08515569,3295.0,3294.6,1.51763]
[1732462654880,3.03465,3295.3,3294.6,1.51763]
[1732462655068,0.11539295,3295.2,3294.5,1.51767]
[1732462655265,3.15011295,3295.2,3294.5,1.51767]
[1732462655470,3.46512425,3295.2,3294.5,1.51767]
[1732462655638,0.43040425,3295.2,3294.3,0.7649]
[1732462655984,0.43040425,3295.2,3294.0,3.0]
[1732462655985,3.03493,3295.0,3294.0,1.51787]
[1732462656142,3.03549,3294.4,3293.9,0.7649]
[1732462656542,3.03549,3294.4,3293.5,2.3133944]
[1732462656543,0.08515569,3294.3,3293.5,2.3133944]
[1732462656942,0.08515569,3294.3,3293.5,2.3133844]
[1732462657482,3.03526,3294.6,3293.9,1.51795]
[1732462657697,0.7777,3294.7,3293.5,2.3133844]
[1732462657698,3.03545,3294.4,3293.5,2.3133844]
[1732462657862,3.03561,3294.3,3293.6,1.51808]
[1732462658046,0.08515569,3294.2,3293.5,0.79525488]
[1732462658243,0.7777,3294.7,3293.5,0.79525488]
[1732462658244,0.03023726,3294.6,3293.9,1.51795]
[1732462658557,3.03546,3294.4,3293.8,1.518]
[1732462658785,0.08515569,3294.5,3293.9,1.51791]
[1732462659081,0.08515569,3294.4,3294.0,0.03035427]
[1732462659285,3.03501,3294.9,3294.3,2.28262]
[1732462659453,0.08515569,3294.8,3294.5,1.51765]
[1732462659780,3.81251,3295.1,3294.5,1.51765]
[1732462659943,0.08515569,3294.7,3294.4,1.51772]
[1732462660139,3.03507,3294.9,3294.3,0.7649]
[1732462660374,0.08515569,3294.6,3294.3,0.7649]
[1732462660593,0.03023726,3294.9,3294.3,0.7649]
[1732462660881,3.0347,3295.3,3294.5,1.51764]
[1732462661042,0.7777,3295.4,3294.5,1.51764]
[1732462661043,3.11989569,3295.2,3294.5,1.51764]
[1732462661247,3.50965526,3295.2,3294.5,1.51764]
[1732462661455,3.03497,3295.0,3294.3,2.28265]
[1732462661862,3.15040295,3294.9,3294.0,1.51789]
[1732462662062,0.11539295,3294.9,3294.1,1.51786]
[1732462662273,0.08515569,3294.9,3294.3,1.51776]
[1732462662485,3.03534,3294.6,3293.9,0.03035148]
[1732462662643,3.81285,3294.8,3294.1,1.51785]
[1732462662843,3.12039569,3294.7,3293.7,2.31326321]
[1732462663045,3.03547,3294.4,3293.7,2.28291]
[1732462663375,0.03023726,3294.6,3293.8,1.518]
[1732462663723,0.03023726,3294.6,3293.7,0.7649]
[1732462663724,0.03023726,3294.7,3293.7,0.7649]
[1732462663880,0.08515569,3294.5,3293.8,0.03035598]
[1732462664178,3.03454,3295.4,3294.4,1.5177]
[1732462664179,3.03477,3295.2,3294.4,1.5177]
[1732462664378,3.03492,3295.0,3294.4,1.5177]
[1732462664681,0.03023726,3295.1,3294.4,1.5177]
[1732462664682,3.06510726,3295.1,3294.4,1.5177]
[1732462664847,0.69552212,3295.0,3294.3,0.7649]
[1732462665059,3.03514,3294.8,3294.3,0.7649]
[1732462665303,0.0859438,3294.7,3294.3,2.28266]
[1732462665803,3.03502,3294.9,3294.3,2.28266]
[1732462666098,3.03492,3295.0,3294.3,2.28266]
[1732462666304,0.0859438,3294.9,3294.4,1.51771]
[1732462666506,0.4115904,3295.1,3294.3,2.28266]
[1732462666507,3.0349,3295.0,3294.3,2.28266]
[1732462666794,0.0859438,3294.8,3294.3,2.28266]
[1732462667001,3.035,3294.9,3294.3,2.28266]
[1732462667303,3.03474,3295.2,3294.3,2.28266]
[1732462667607,0.0859438,3295.1,3295.0,1.51745]
[1732462668100,0.0859438,3295.1,3294.7,0.0303434]
[1732462668101,0.08333168,3295.1,3294.7,1.51757]
[1732462668284,0.03023726,3295.4,3294.6,1.5176]
[1732462668482,3.11804705,3295.3,3294.3,0.7649]
[1732462668680,3.11804705,3295.3,3294.5,1.51764]
[1732462668681,3.06501726,3295.2,3294.5,1.51764]
[1732462668891,0.08354176,3295.1,3294.5,1.51764]
[1732462669194,3.03492,3295.0,3294.4,1.51772]
[1732462669367,3.03492,3295.0,3294.3,3.7649]
[1732462669700,3.03492,3295.0,3294.3,0.7649]
[1732462669701,3.03515,3294.8,3294.3,0.7649]
[1732462670001,3.0352,3294.7,3294.3,0.7649]
[1732462670208,0.08354176,3294.7,3292.2,0.1]
[1732462670508,0.08354176,3294.7,3294.4,1.51771]
[1732462670863,3.86717,3295.0,3294.4,1.51771]
[1732462671172,3.03472,3295.2,3294.4,1.51771]
[1732462671173,0.08354176,3294.9,3294.6,1.82113]
[1732462671507,3.03444,3295.5,3294.9,1.82098]
[1732462671665,0.08337268,3295.4,3294.9,1.82098]
[1732462671873,0.31178127,3295.3,3294.9,1.82098]
[1732462672172,3.03458,3295.4,3294.7,1.82105]
[1732462672512,3.03458,3295.4,3294.8,1.82101]
[1732462672513,3.641492,3295.4,3294.8,1.82101]
[1732462672814,3.641492,3295.4,3294.5,1.85152523]
[1732462672815,0.0833778,3295.3,3295.1,1.82083]
[1732462673103,0.0833778,3295.3,3295.0,0.8184]
[1732462673104,0.8322,3295.8,3295.2,1.82083]
[1732462673310,3.03435,3295.6,3295.0,2.63928]
[1732462673488,0.0833778,3295.7,3295.2,1.82082]
[1732462674208,3.1176478,3295.7,3295.2,1.82082]
[1732462674509,0.0833778,3295.7,3295.2,1.82079]
[1732462674882,0.0833778,3295.7,3295.0,2.63931]
[1732462674883,0.0833778,3295.7,3295.1,3.64176]
[1732462675085,3.04004731,3296.3,3295.7,1.82053]
[1732462675294,0.08133446,3296.2,3295.9,1.82042]
[1732462675479,0.00630731,3296.3,3296.2,1.82027]
[1732462675678,0.08764177,3296.3,3296.2,1.82027]
[1732462675906,0.08764177,3296.3,3296.1,1.82033]
[1732462676269,0.08764177,3296.3,3295.7,0.84873381]
[1732462676270,0.08764177,3296.3,3295.8,3.0]
[1732462676471,0.08764177,3296.3,3295.0,0.263931]
[1732462676472,3.03385,3296.2,3295.6,1.82056]
[1732462676670,0.08153452,3296.1,3295.3,3.64154]
[1732462676992,0.03023726,3296.0,3295.1,2.63924]
[1732462677197,0.11177178,3296.0,3295.1,0.8184]
[1732462677505,3.03433,3295.7,3294.9,1.82095]
[1732462677714,0.33367026,3295.6,3294.8,2.63945]
[1732462678008,3.03491,3295.0,3294.3,2.63967]
[1732462678170,3.03491,3295.0,3294.3,0.8184]
[1732462678375,0.08153452,3294.9,3294.3,0.8184]
[1732462678576,0.08153452,3294.9,3294.3,2.90668856]
[1732462678806,0.08153452,3294.9,3294.5,1.8212]
[1732462678976,3.03465,3295.3,3294.6,1.82115]
[1732462679175,0.08153452,3294.8,3294.4,3.0]
[1732462679400,0.690129,3295.3,3294.5,1.82118]
[1732462679610,3.86668,3295.5,3294.6,1.82116]
[1732462679611,0.08153452,3294.7,3294.6,1.82116]
[1732462679910,3.86668,3295.5,3294.5,1.82118]
[1732462680118,3.03469,3295.3,3294.5,1.82118]
[1732462680608,3.03481,3295.1,3294.4,3.0]
[1732462680810,0.08153452,3295.2,3294.5,1.82121]
[1732462680996,3.03472,3295.2,3294.5,1.82121]
[1732462681172,0.08153452,3295.1,3294.5,1.82121]
[1732462681368,0.08153452,3295.1,3294.7,1.82109]
[1732462681624,0.08153452,3295.1,3294.4,3.0]
[1732462681905,3.03429,3295.7,3294.8,1.82104]
[1732462682105,3.11588452,3295.6,3295.0,0.8184]
[1732462682408,0.08153452,3295.6,3295.2,1.82082]
[1732462682776,4.20859037,3296.2,3295.2,3.6416]
[1732462683082,0.48333338,3296.1,3295.4,1.82071]
[1732462683289,0.08153452,3296.0,3295.4,1.82068]
[1732462683492,3.11551452,3296.0,3295.4,1.82068]
[1732462684115,3.03434,3295.6,3295.1,3.0]
[1732462684272,3.03427,3295.7,3295.0,0.8184]
[1732462684478,0.08153452,3295.6,3295.0,0.8184]
[1732462684704,0.08153452,3295.6,3295.2,1.82078]
[1732462685011,0.8322,3296.2,3295.2,1.82078]
[1732462685012,0.61843615,3296.3,3295.8,1.82045]
[1732462685323,3.03375,3296.3,3295.4,2.66942703]
[1732462685474,0.41929636,3296.6,3295.4,0.84873703]
[1732462685475,3.03407,3295.9,3295.4,0.84873703]
[1732462685674,3.03356,3296.5,3295.4,0.8184]
[1732462685919,3.03431,3295.7,3295.0,0.8266]
[1732462686260,3.03498,3295.0,3294.5,0.8266]
[1732462686716,3.03524,3294.7,3294.0,1.82147]
[1732462686913,3.03524,3294.7,3293.8,2.6482]
[1732462686914,3.03522,3294.7,3294.1,2.003577]
[1732462687077,3.035,3294.9,3293.9,0.03035116]
[1732462687275,3.03508,3294.8,3294.2,1.82138]
[1732462688111,3.03494,3295.0,3294.1,3.0]
[1732462688275,3.03494,3295.0,3294.3,0.8266]
[1732462688617,3.03529,3294.6,3294.3,0.8266]
[1732462689104,3.03529,3294.6,3293.4,1.85214896]
[1732462689105,3.03529,3294.6,3293.8,3.0]
[1732462689316,3.03511,3294.8,3294.1,3.0]
[1732462689475,3.03529,3294.6,3294.0,1.82149]
[1732462689894,3.03563,3294.3,3293.7,0.8266]
[1732462690127,3.03522,3294.7,3293.7,0.8266]
[1732462690296,3.03522,3294.7,3294.0,1.82146]
[1732462690515,3.03533,3294.6,3294.0,1.82146]
[1732462691100,0.303522,3294.7,3293.7,3.85695252]
[1732462691300,3.0357,3294.2,3293.7,0.8266]
[1732462691539,0.03023726,3294.7,3293.7,0.8266]
[1732462691849,3.03558,3294.3,3293.7,2.64822]
[1732462692347,3.03576,3294.1,3293.7,0.8266]
[1732462692645,3.03631,3293.5,3292.9,0.8266]
[1732462692842,0.03023726,3294.0,3292.9,0.8266]
[1732462692843,3.03612,3293.7,3293.0,1.85238216]
[1732462693001,3.03612,3293.7,3293.1,1.82198]
[1732462693402,3.03573,3294.1,3293.4,1.82181]
[1732462693598,3.03585,3294.0,3293.4,0.8266]
[1732462693806,3.03536,3294.5,3293.8,1.82158]
[1732462693807,3.03537,3294.5,3293.8,1.82158]
[1732462694029,3.03577,3294.1,3293.5,0.264844]
[1732462694242,3.03577,3294.1,3293.5,4.82173]
[1732462694444,3.03558,3294.3,3293.7,1.82165]
[1732462694649,3.03564,3294.2,3293.6,1.82166]
[1732462694858,3.03542,3294.5,3293.6,1.82166]
[1732462695006,4.21752636,3295.0,3293.5,3.03035515]
[1732462695007,3.03556,3294.3,3293.5,3.03035515]
[1732462695210,3.03556,3294.3,3293.5,0.03035515]
[1732462695410,3.03574,3294.1,3293.5,1.82172]
[1732462695647,3.03574,3294.1,3293.5,4.82172]
[1732462695859,3.339116,3294.3,3293.5,4.82172]
[1732462696057,3.03556,3294.3,3293.7,1.82162]
[1732462696610,3.03556,3294.3,3293.5,4.82172]
[1732462696851,1.25653362,3294.2,3293.1,0.7725]
[1732462697147,1.25653362,3294.2,3293.3,1.82184]
[1732462697148,3.03593,3293.9,3293.3,1.82184]
[1732462697346,3.0362,3293.6,3293.1,0.7725]
[1732462697741,3.0364,3293.4,3293.1,0.7725]
[1732462697943,3.0364,3293.4,3292.9,3.0]
[1732462698160,3.0365,3293.3,3292.9,3.0]
[1732462698349,3.03656,3293.2,3292.8,0.7725]
[1732462698534,6.07286,3293.4,3292.8,0.7725]
[1732462698729,1.414286,3293.4,3292.4,1.82236]
[1732462698935,3.0365,3293.3,3292.6,1.82222]
[1732462699134,3.03674,3293.0,3292.5,0.7725]
[1732462699428,3.03668,3293.1,3292.5,2.59478]
[1732462699632,3.03668,3293.1,3292.5,2.854268]
[1732462699864,0.08015406,3293.0,3292.5,2.854268]
[1732462700075,0.08015406,3293.0,3292.6,1.82226]
[1732462700228,3.03648,3293.3,3292.6,1.82226]
[1732462700583,0.08015406,3293.2,3292.9,1.82206]
[1732462700871,3.84261,3294.3,3293.1,5.37199]
[1732462701075,0.08015406,3294.2,3293.8,1.8216]
[1732462701375,0.8,3294.8,3294.0,3.184]
[1732462701534,0.8,3294.8,3294.3,1.82132]
[1732462701732,0.8,3294.8,3294.3,0.55]
[1732462701967,0.8,3294.8,3294.7,1.8211]
[1732462702175,0.8,3294.8,3294.5,1.82121]
[1732462702875,0.8,3294.8,3294.3,2.37131]
[1732462703028,0.8,3294.8,3294.3,0.55]
[1732462703233,0.8,3294.8,3293.7,2.59414]
[1732462703234,3.03542,3294.5,3293.7,2.59414]
[1732462703476,3.03542,3294.5,3293.8,4.8216]
[1732462703634,3.03542,3294.5,3293.9,1.82153]
[1732462703977,3.0352,3294.7,3294.1,1.82139]
[1732462704144,3.0352,3294.7,3293.5,1.82174]
[1732462704145,3.03569,3294.2,3293.6,1.82167]
[1732462704484,3.03561,3294.3,3293.6,1.82167]
[1732462704485,3.03557,3294.3,3293.6,1.82167]
[1732462704647,3.642666,3294.3,3293.7,1.82163]
[1732462704836,0.607096,3294.3,3293.8,1.82158]
[1732462705254,3.642696,3294.3,3293.6,1.82167]
[1732462705449,3.3999146,3294.2,3293.6,1.82167]
[1732462705694,3.03566,3294.2,3293.7,1.82165]
[1732462706188,3.03549,3294.4,3293.8,1.82156]
[1732462706546,3.03549,3294.4,3292.6,2.37222]
[1732462706547,0.1,3294.1,3292.6,2.37222]
[1732462706751,0.313569,3294.0,3293.6,1.82171]
[1732462707282,0.313569,3294.0,3293.4,2.37177]
[1732462707489,3.03585,3294.0,3293.4,2.37177]
[1732462707681,0.1,3294.1,3293.6,1.82169]
[1732462708054,0.2,3294.3,3293.8,1.8216]
[1732462708476,0.1,3294.1,3293.6,1.82169]
[1732462709089,0.1,3294.1,3293.4,0.01529782]
[1732462709254,0.1,3294.1,3293.4,1.83709782]
[1732462709680,0.1,3294.1,3293.4,2.60609782]
[1732462709884,0.1,3294.1,3293.4,1.80609782]
[1732462710092,0.1,3294.1,3293.4,0.769]
[1732462710296,0.1,3293.9,3293.1,0.55]
[1732462710465,0.2,3293.9,3293.1,0.769]
[1732462710652,0.1,3294.1,3293.1,0.769]
[1732462710992,3.13551,3294.4,3293.7,0.769]
[1732462711193,0.1,3294.1,3293.7,0.769]
[1732462711400,3.03598,3293.9,3293.2,2.28725]
[1732462711554,3.13598,3293.9,3293.3,0.228725]
[1732462711756,3.13598,3293.9,3293.2,2.89972521]
[1732462712070,3.13576,3294.1,3293.2,2.89972521]
[1732462712071,0.1,3294.1,3293.2,1.38145521]
[1732462712278,0.31,3294.4,3293.2,1.38145521]
[1732462712279,0.1,3294.4,3293.4,1.51818]
[1732462712475,3.03502,3294.9,3293.4,1.51818]
[1732462712476,4.05542,3294.9,3294.1,1.51785]
[1732462712714,0.1,3294.6,3294.2,1.51777]
[1732462713196,0.1,3294.6,3293.5,0.975818]
[1732462713197,0.1,3294.6,3293.8,1.51799]
[1732462713488,0.1,3294.1,3293.9,0.59863359]
[1732462713658,0.08041586,3294.0,3293.6,1.51808]
[1732462713854,3.13574,3294.1,3293.8,0.61197024]
[1732462714075,3.13591,3293.9,3293.8,0.61197024]
[1732462714285,3.13591,3293.9,3293.2,2.28724]
[1732462714469,0.18041586,3293.8,3291.7,1.51895]
[1732462714658,3.23626,3293.6,3292.9,1.51841]
[1732462715002,0.08041586,3293.5,3292.9,1.51841]
[1732462715215,0.08041586,3293.5,3292.6,1.51852]
[1732462715216,3.03656,3293.2,3292.6,1.51852]
[1732462715766,3.11713586,3293.1,3292.5,1.51859]
[1732462716020,3.0368,3293.0,3292.3,1.51868]
[1732462716345,3.03698,3292.8,3292.4,0.228768]
[1732462716486,3.0368,3293.0,3292.2,0.769]
[1732462716683,0.9204,3293.4,3292.2,0.769]
[1732462716684,0.8204,3293.4,3292.9,1.51841]
[1732462716884,0.8204,3293.7,3293.2,1.51827]
[1732462717381,3.85625,3294.0,3293.4,1.51818]
[1732462717594,0.1,3293.9,3293.2,1.51826]
[1732462717799,0.1,3293.9,3293.4,1.51815]
[1732462717996,0.9204,3294.3,3293.5,1.51812]
[1732462718204,0.1,3294.1,3293.7,1.51804]
[1732462718414,0.1,3294.1,3293.8,1.51799]
[1732462718711,0.1,3294.1,3293.6,2.28707]
[1732462718712,0.1,3294.1,3293.9,1.51795]
[1732462719081,3.13582,3294.0,3293.3,1.5182]
[1732462719421,0.1,3294.0,3293.4,1.51818]
[1732462719717,3.03615,3293.7,3293.0,0.55]
[1732462719916,3.95636,3293.9,3293.2,1.51827]
[1732462720141,3.03613,3293.7,3293.0,2.06833]
[1732462720303,3.03613,3293.7,3292.9,0.769]
[1732462720304,3.0363,3293.5,3292.9,2.28738]
[1732462720635,0.1,3293.6,3292.9,2.28738]
[1732462720636,0.1,3293.6,3293.2,1.51824]
[1732462720810,0.1,3293.6,3293.2,1.51825]
[1732462721339,3.13601,3293.8,3293.2,1.51824]
[1732462721516,0.1,3293.9,3293.6,1.51805]
[1732462721730,0.1,3293.9,3293.2,0.151824]
[1732462721731,0.1,3293.9,3293.5,1.51812]
[1732462722231,0.1,3293.9,3293.2,0.151824]
[1732462722394,0.1,3293.9,3293.4,1.51816]
[1732462722595,3.03575,3294.1,3293.4,1.51816]
[1732462722796,3.03634,3293.5,3292.9,0.769]
[1732462722996,3.85674,3293.5,3292.9,4.51839]
[1732462723344,3.03659,3293.2,3292.6,1.51851]
[1732462723640,3.03656,3293.2,3292.5,0.769]
[1732462724014,3.03676,3293.0,3292.5,0.769]
[1732462724215,0.8204,3293.5,3292.7,1.51846]
[1732462724216,3.85675,3293.5,3292.7,1.51846]
[1732462724409,3.85675,3293.5,3292.5,0.769]
[1732462724410,6.89312,3293.5,3292.6,1.51855]
[1732462724621,3.03578,3294.1,3293.4,1.51816]
[1732462724827,3.03594,3293.9,3293.3,0.769]
[1732462725035,0.303578,3294.0,3292.9,2.28737]
[1732462725198,0.45649539,3294.0,3292.9,0.769]
[1732462725399,3.03634,3293.5,3292.7,1.51849]
[1732462725809,3.03634,3293.5,3292.8,1.51842]
[1732462725810,3.03638,3293.4,3292.8,1.51842]
[1732462726010,3.07400471,3293.8,3292.6,2.28892]
[1732462726345,3.03641,3293.4,3292.7,1.51847]
[1732462726504,6.07286,3293.4,3292.7,1.51847]
[1732462726706,6.07286,3293.4,3292.6,2.28892]
[1732462726707,3.03641,3293.4,3292.8,1.51846]
[1732462727028,3.03622,3293.6,3292.6,0.7704]
[1732462727230,3.802,3293.9,3292.6,0.7704]
[1732462727231,3.0,3293.7,3292.7,1.51851]
[1732462727399,6.03611,3293.7,3293.1,1.51828]
[1732462727740,0.802,3293.9,3293.4,1.51814]
[1732462727904,0.802,3293.9,3293.5,1.51813]
[1732462728103,3.83791,3293.9,3293.3,1.5182]
[1732462728306,3.03579,3294.1,3293.3,0.7704]
[1732462728529,3.03606,3293.8,3293.1,1.51832]
[1732462728728,3.03606,3293.8,3293.2,1.51825]
[1732462729039,3.03606,3293.8,3293.2,1.51594445]
[1732462729543,3.03604,3293.8,3293.0,0.7704]
[1732462729841,0.07976379,3293.7,3293.2,1.51827]
[1732462730003,0.07976379,3293.7,3293.0,0.7704]
[1732462730402,0.802,3293.5,3292.9,1.51839]
[1732462730832,0.07976379,3293.4,3292.9,1.51839]
[1732462731014,0.07976379,3293.4,3293.3,1.51823]
[1732462731216,0.07976379,3293.4,3293.3,2.06823]